bitfinex-derivatives/quotes_BTCF0:USTF0_20251108
["timestamp","ask_amount","ask_price","bid_price","bid_amount"]
[1762595464282,0.58119959,102510.0,102500.0,0.25953206]
[1762595465083,0.67880519,102510.0,102500.0,0.25953206]
[1762595465472,0.58119959,102510.0,102500.0,0.25953206]
[1762595465872,0.67880519,102510.0,102500.0,0.25953206]
[1762595468573,0.67880519,102510.0,102500.0,0.1566015]
[1762595468775,0.67880519,102510.0,102500.0,0.25953206]
[1762595469369,0.67880519,102510.0,102500.0,0.1566015]
[1762595469569,0.44317401,102510.0,102500.0,0.25953206]
[1762595469776,0.54610457,102510.0,102500.0,0.25953206]
[1762595470576,0.64371017,102510.0,102500.0,0.25953206]
[1762595470775,0.54077961,102510.0,102500.0,0.25953206]
[1762595470975,0.53877961,102510.0,102500.0,0.25953206]
[1762595471183,0.17697961,102510.0,102500.0,0.25953206]
[1762595471480,0.53777961,102510.0,102500.0,0.25953206]
[1762595471671,0.07937401,102510.0,102500.0,0.36246262]
[1762595472077,0.53777961,102510.0,102500.0,0.36246262]
[1762595472375,0.53777961,102510.0,102500.0,0.25953206]
[1762595473187,0.17697961,102510.0,102500.0,0.25953206]
[1762595473377,0.19453161,102510.0,102500.0,0.25953206]
[1762595473979,0.09692601,102510.0,102500.0,0.25953206]
[1762595475588,0.09692601,102510.0,102500.0,0.36246262]
[1762595478294,0.19453161,102510.0,102500.0,0.25953206]
[1762595480593,0.19453161,102510.0,102500.0,0.1566015]
[1762595480890,0.19453161,102510.0,102500.0,0.25953206]
[1762595482178,0.09692601,102510.0,102500.0,0.25953206]
[1762595483296,0.09692601,102510.0,102500.0,0.36246262]
[1762595484890,0.11446903,102510.0,102500.0,0.36246262]
[1762595485896,0.11446903,102510.0,102500.0,0.72326262]
[1762595488991,0.11346903,102510.0,102500.0,0.72326262]
[1762595489191,0.09208903,102510.0,102500.0,0.72326262]
[1762595489394,0.09184903,102510.0,102500.0,0.72326262]
[1762595489998,0.09284903,102510.0,102500.0,0.72326262]
[1762595490798,0.21261463,102510.0,102500.0,0.72326262]
[1762595492193,0.21261463,102510.0,102500.0,0.25953206]
[1762595492493,0.60614616,102510.0,102500.0,0.25953206]
[1762595492700,0.6939371,102510.0,102500.0,0.25953206]
[1762595492997,0.6939371,102510.0,102500.0,0.0001463]
[1762595493299,0.77935553,102510.0,102500.0,0.0001463]
[1762595493598,0.67642497,102510.0,102500.0,0.0001463]
[1762595493994,0.77935553,102510.0,102500.0,0.0001463]
[1762595494295,0.67645659,102510.0,102500.0,0.0001463]
[1762595495001,0.60617778,102510.0,102500.0,0.0001463]
[1762595495694,0.70913996,102510.0,102500.0,0.0001463]
[1762595495995,0.7969309,102510.0,102500.0,0.0001463]
[1762595496198,0.0976151,102500.0,102490.0,0.03415711]
[1762595496499,0.68732933,102500.0,102490.0,0.03415711]
[1762595497299,0.68732933,102500.0,102490.0,0.03615711]
[1762595498997,0.68832933,102500.0,102490.0,0.03415711]
[1762595507007,1.04912933,102500.0,102490.0,0.03415711]
[1762595511708,0.1017447,102490.0,102480.0,0.03742036]
[1762595511900,0.61807125,102490.0,102480.0,0.05988036]
[1762595512099,0.61807125,102490.0,102480.0,0.08133036]
[1762595512299,0.61807125,102490.0,102480.0,0.09485036]
[1762595513504,0.25727125,102490.0,102480.0,0.09485036]
[1762595513700,0.97887125,102490.0,102480.0,0.09485036]
[1762595514103,0.97887125,102490.0,102480.0,0.09685036]
[1762595514906,0.92630688,102490.0,102480.0,0.09685036]
[1762595516815,1.00605574,102490.0,102480.0,0.09685036]
[1762595518103,1.00605574,102490.0,102480.0,0.03942036]
[1762595519012,1.00605574,102490.0,102480.0,0.06231036]
[1762595519214,1.00605574,102490.0,102480.0,0.08434036]
[1762595520716,1.00605574,102490.0,102480.0,0.03942036]
[1762595522113,1.00605574,102490.0,102480.0,0.09806036]
[1762595525013,0.93585369,102490.0,102480.0,0.07603036]
[1762595525217,1.02364463,102490.0,102480.0,0.03942036]
[1762595526422,1.02464463,102490.0,102480.0,0.03942036]
[1762595527327,1.02464463,102490.0,102480.0,0.03742036]
[1762595529325,1.02464463,102490.0,102480.0,0.03729853]
[1762595529629,0.0976342,102480.0,102470.0,0.04924267]
[1762595529826,0.75214528,102480.0,102470.0,0.04924267]
[1762595530130,0.6491831,102480.0,102470.0,0.09416267]
[1762595530922,0.6491831,102480.0,102470.0,0.09616267]
[1762595533336,0.6491831,102480.0,102470.0,0.05124267]
[1762595533537,0.75214528,102480.0,102470.0,0.05124267]
[1762595533934,0.75214528,102480.0,102470.0,0.07413267]
[1762595534131,0.75214528,102480.0,102470.0,0.05124267]
[1762595534637,0.75214528,102480.0,102470.0,0.07413267]
[1762595535031,0.78696822,102480.0,102470.0,0.07413267]
[1762595536133,0.78696822,102480.0,102470.0,0.09616267]
[1762595540940,0.68400604,102480.0,102470.0,0.09616267]
[1762595542642,0.68400604,102480.0,102470.0,0.05124267]
[1762595542643,0.78696822,102480.0,102470.0,0.05124267]
[1762595542850,0.78696822,102480.0,102470.0,0.09616267]
[1762595544849,0.752111,102480.0,102470.0,0.09616267]
[1762595546651,0.752111,102480.0,102470.0,0.07413267]
[1762595546852,0.752111,102480.0,102470.0,0.05124267]
[1762595547146,0.752111,102480.0,102470.0,0.09501267]
[1762595548951,0.752111,102480.0,102470.0,0.07390267]
[1762595549452,0.752111,102480.0,102470.0,0.09501267]
[1762595554354,0.75224678,102480.0,102470.0,0.09501267]
[1762595554550,0.66449434,102480.0,102470.0,0.09501267]
[1762595555056,0.787104,102480.0,102470.0,0.09501267]
[1762595555251,0.87496615,102480.0,102470.0,0.09501267]
[1762595555458,0.85538656,102480.0,102470.0,0.03752267]
[1762595556958,0.89013407,102480.0,102470.0,0.02164143]
[1762595558254,0.89013407,102480.0,102470.0,0.03562143]
[1762595558557,0.76752441,102480.0,102470.0,0.03562143]
[1762595558755,0.76752441,102480.0,102470.0,0.02164143]
[1762595559446,0.76752441,102480.0,102470.0,0.03562143]
[1762595560355,0.76752441,102480.0,102470.0,0.02164143]
[1762595560662,0.0976436,102470.0,102460.0,0.10468644]
[1762595560962,0.78755742,102470.0,102460.0,0.10468644]
[1762595561553,0.89058749,102470.0,102460.0,0.06091644]
[1762595561754,0.87545216,102470.0,102460.0,0.06091644]
[1762595561959,0.75239848,102470.0,102460.0,0.08457644]
[1762595563659,0.75239848,102470.0,102460.0,0.08757644]
[1762595565262,0.75239848,102470.0,102460.0,0.06491644]
[1762595566268,0.75239848,102470.0,102440.0,0.05742373]
[1762595566269,0.0976627,102450.0,102440.0,0.05742373]
[1762595566459,1.02532284,102450.0,102440.0,0.10010373]
[1762595567156,1.09556633,102450.0,102440.0,0.10010373]
[1762595567361,1.09656633,102450.0,102440.0,0.10010373]
[1762595569864,0.99353626,102450.0,102440.0,0.10010373]
[1762595570163,1.09656633,102450.0,102440.0,0.10010373]
[1762595573671,0.99353626,102450.0,102440.0,0.10010373]
[1762595574770,0.92329277,102450.0,102440.0,0.10010373]
[1762595575765,0.97590312,102450.0,102440.0,0.10010373]
[1762595577067,1.07893319,102450.0,102440.0,0.10010373]
[1762595581175,1.09656633,102450.0,102440.0,0.10010373]
[1762595583078,1.02632284,102450.0,102440.0,0.10010373]
[1762595584374,1.11417118,102450.0,102440.0,0.10010373]
[1762595584980,1.02632284,102450.0,102440.0,0.10010373]
[1762595585284,1.14937652,102450.0,102440.0,0.10010373]
[1762595587282,0.94331638,102450.0,102440.0,0.10010373]
[1762595587475,1.04634645,102450.0,102440.0,0.10010373]
[1762595588877,0.94331638,102450.0,102440.0,0.10010373]
[1762595589081,1.04634645,102450.0,102440.0,0.10010373]
[1762595590279,0.94331638,102450.0,102440.0,0.10010373]
[1762595590486,1.04634645,102450.0,102440.0,0.10010373]
[1762595594879,1.01117523,102450.0,102440.0,0.10010373]
[1762595595385,0.880814,102450.0,102440.0,0.3008062]
[1762595595679,0.79293154,102450.0,102440.0,0.3008062]
[1762595595880,0.43213154,102450.0,102440.0,0.5448462]
[1762595596583,0.52979444,102450.0,102440.0,0.5448462]
[1762595597185,0.52979444,102450.0,102440.0,0.3008062]
[1762595597480,0.52979444,102450.0,102440.0,0.5448462]
[1762595597683,0.52979444,102450.0,102440.0,0.2031338]
[1762595597984,0.51216641,102450.0,102440.0,0.2031338]
[1762595598285,0.97599648,102450.0,102440.0,0.10010373]
[1762595599179,0.99362451,102450.0,102440.0,0.10010373]
[1762595599375,1.01117543,102450.0,102440.0,0.10010373]
[1762595601681,0.90814536,102450.0,102440.0,0.10010373]
[1762595601882,1.01117543,102450.0,102440.0,0.10010373]
[1762595602082,0.92329297,102450.0,102440.0,0.10010373]
[1762595602282,0.99354923,102450.0,102440.0,0.10010373]
[1762595603194,0.92329297,102450.0,102440.0,0.10010373]
[1762595603683,0.99355004,102450.0,102440.0,0.10010373]
[1762595607298,0.99355004,102450.0,102440.0,0.07845373]
[1762595607596,0.99355004,102450.0,102410.0,1e-07]
[1762595607597,0.0976917,102420.0,102410.0,1e-07]
[1762595607790,0.0977012,102410.0,102400.0,0.06983216]
[1762595607994,0.08784951,102420.0,102410.0,0.05693]
[1762595608196,0.07043116,102430.0,102420.0,0.05693]
[1762595608386,0.05282577,102430.0,102420.0,0.15996007]
[1762595608598,0.03526203,102430.0,102420.0,0.15996007]
[1762595608792,0.75695948,102430.0,102420.0,0.15996007]
[1762595608992,0.85998955,102430.0,102420.0,0.05693]
[1762595609396,0.95767155,102430.0,102420.0,0.05693]
[1762595610507,0.99784068,102430.0,102420.0,0.05793]
[1762595610895,1.00184068,102430.0,102420.0,0.05793]
[1762595611093,0.93155582,102430.0,102420.0,0.001]
[1762595611291,0.93155582,102430.0,102400.0,0.02608216]
[1762595611292,0.0977013,102410.0,102400.0,0.06983216]
[1762595611595,0.37397799,102410.0,102400.0,0.06983216]
[1762595611899,0.88951785,102410.0,102400.0,0.06983216]
[1762595612105,1.09557799,102410.0,102400.0,0.06983216]
[1762595612296,1.05069625,102410.0,102400.0,0.06983216]
[1762595612700,1.00571553,102410.0,102400.0,0.06983216]
[1762595612902,1.00671553,102410.0,102400.0,0.06983216]
[1762595613296,0.91765821,102410.0,102400.0,0.04760216]
[1762595613604,1.07892456,102410.0,102400.0,0.04760216]
[1762595613791,0.91765821,102410.0,102400.0,0.04760216]
[1762595614102,1.07883661,102410.0,102400.0,0.04760216]
[1762595615200,0.91765821,102410.0,102400.0,0.06983216]
[1762595615398,1.07883661,102410.0,102400.0,0.04760216]
[1762595615606,1.07883661,102410.0,102400.0,0.02608216]
[1762595616297,1.13381378,102410.0,102400.0,0.02608216]
[1762595616897,0.91765821,102410.0,102400.0,0.04760216]
[1762595617097,1.13381378,102410.0,102400.0,0.06983216]
[1762595617303,1.21253486,102410.0,102400.0,0.06983216]
[1762595617502,0.91773779,102410.0,102400.0,0.06983216]
[1762595618411,0.74991541,102410.0,102400.0,0.06983216]
[1762595618709,0.80239999,102410.0,102400.0,0.06983216]
[1762595619404,0.80239999,102410.0,102400.0,0.16754276]
[1762595619605,0.80239999,102410.0,102400.0,0.06983216]
[1762595619803,0.90010109,102410.0,102400.0,0.06983216]
[1762595623799,0.93507637,102410.0,102400.0,0.06983216]
[1762595625011,0.90010109,102410.0,102400.0,0.06983216]
[1762595625713,0.90010109,102410.0,102400.0,0.16754286]
[1762595626807,0.90010109,102410.0,102400.0,0.06983216]
[1762595627112,0.91773759,102410.0,102400.0,0.06983216]
[1762595627313,0.91773759,102410.0,102400.0,0.16754286]
[1762595627907,0.91773759,102410.0,102400.0,0.06983216]
[1762595630813,0.90013842,102410.0,102400.0,0.16754276]
[1762595632314,0.84761651,102410.0,102400.0,0.16754276]
[1762595632715,0.84761651,102410.0,102400.0,0.06983216]
[1762595633120,0.90016477,102410.0,102400.0,0.16754276]
[1762595633318,0.82003649,102410.0,102400.0,0.16754276]
[1762595633618,0.91773759,102410.0,102400.0,0.16754276]
[1762595634112,0.91773749,102410.0,102400.0,0.16754276]
[1762595634318,0.82003649,102410.0,102400.0,0.41166276]
[1762595634510,0.91773749,102410.0,102400.0,0.41166276]
[1762595634816,0.91773749,102410.0,102400.0,0.16754276]
[1762595635017,0.91773749,102410.0,102400.0,0.51477274]
[1762595635219,0.91773749,102410.0,102400.0,0.16754276]
[1762595635419,0.93546592,102410.0,102400.0,0.41166276]
[1762595635911,0.91775496,102410.0,102400.0,0.41166276]
[1762595636120,0.91775496,102410.0,102400.0,0.16754276]
[1762595636516,0.91775496,102410.0,102400.0,0.41166276]
[1762595637917,0.91775496,102410.0,102400.0,0.16754276]
[1762595638114,0.55695496,102410.0,102400.0,0.16754276]
[1762595638918,0.19615506,102410.0,102400.0,0.16754276]
[1762595639421,0.19615506,102410.0,102400.0,0.41166276]
[1762595639819,0.19615506,102410.0,102400.0,0.16754276]
[1762595640124,0.02831541,102410.0,102400.0,0.41166276]
[1762595640310,0.21386592,102410.0,102400.0,0.51477274]
[1762595640513,0.21386592,102410.0,102400.0,0.27065274]
[1762595641020,0.21386592,102410.0,102400.0,0.51477274]
[1762595641817,0.21386592,102410.0,102400.0,0.16754276]
[1762595642115,0.21386592,102410.0,102400.0,0.87557274]
[1762595642116,0.11616492,102410.0,102400.0,0.87557274]
[1762595642322,0.08116492,102420.0,102410.0,0.155971]
[1762595642521,0.58580508,102430.0,102420.0,0.1559615]
[1762595642723,0.4627514,102430.0,102420.0,0.10317052]
[1762595642922,0.3650663,102430.0,102420.0,0.10317052]
[1762595643120,0.4627483,102430.0,102420.0,0.10317052]
[1762595643320,0.46280227,102430.0,102420.0,0.10317052]
[1762595644816,0.51544617,102430.0,102420.0,0.10317052]
[1762595645016,0.41976417,102430.0,102420.0,0.10317052]
[1762595645217,0.455791,102430.0,102420.0,0.2062805]
[1762595645412,0.553473,102430.0,102420.0,0.4503605]
[1762595645618,0.555533,102430.0,102420.0,0.4503605]
[1762595645820,0.555533,102430.0,102420.0,0.2062805]
[1762595646131,0.194733,102430.0,102420.0,0.4503605]
[1762595646324,0.191733,102430.0,102420.0,0.4503605]
[1762595646524,0.091931,102430.0,102420.0,0.8111605]
[1762595646722,0.0392871,102430.0,102420.0,0.8111605]
[1762595647121,0.0372871,102430.0,102420.0,0.5670805]
[1762595647422,0.0382871,102430.0,102420.0,0.8111605]
[1762595648021,0.0382871,102430.0,102420.0,0.5670805]
[1762595648216,0.0372871,102430.0,102420.0,0.5670805]
[1762595648422,0.00220027,102430.0,102420.0,0.8111605]
[1762595649328,0.00220027,102430.0,102420.0,0.5670805]
[1762595649629,0.00020027,102430.0,102420.0,0.5670805]
[1762595650020,0.00020027,102430.0,102420.0,0.8111605]
[1762595652026,0.00020027,102430.0,102420.0,0.5670805]
[1762595652421,0.00020027,102430.0,102420.0,0.8111605]
[1762595653522,2.7e-07,102430.0,102420.0,0.8111605]
[1762595653723,2.7e-07,102430.0,102420.0,0.5670805]
[1762595654025,2.7e-07,102430.0,102420.0,0.8111605]
[1762595654730,2.7e-07,102430.0,102420.0,0.91427048]
[1762595655138,2.7e-07,102430.0,102420.0,0.8111605]
[1762595655534,0.0001463,102440.0,102430.0,0.155952]
[1762595655839,0.0001463,102440.0,102430.0,0.61986198]
[1762595656037,0.0001463,102440.0,102430.0,0.86390198]
[1762595656533,0.0001463,102440.0,102430.0,0.760792]
[1762595656738,0.0011463,102440.0,102430.0,0.516752]
[1762595656926,0.0031463,102440.0,102430.0,0.86390198]
[1762595657837,0.0031463,102440.0,102430.0,0.61986198]
[1762595658037,0.0031463,102440.0,102430.0,0.86390198]
[1762595658240,0.0076663,102440.0,102430.0,0.86390198]
[1762595658636,0.0076663,102440.0,102430.0,0.61986198]
[1762595659040,0.0076663,102440.0,102430.0,0.86390198]
[1762595661042,0.0076663,102440.0,102430.0,0.61986198]
[1762595661446,0.0054063,102440.0,102430.0,0.86390198]
[1762595662842,0.0054063,102440.0,102430.0,0.61986198]
[1762595663544,0.0054063,102440.0,102430.0,0.86390198]
[1762595664343,0.0031463,102440.0,102430.0,0.86390198]
[1762595664743,0.1053387,102440.0,102430.0,0.05827]
[1762595664943,0.60433551,102440.0,102430.0,0.05827]
[1762595665338,0.65697941,102440.0,102430.0,0.05827]
[1762595665547,1.22189258,102440.0,102430.0,0.05827]
[1762595665739,0.102202,102430.0,102420.0,0.1558241]
[1762595666046,0.55058208,102430.0,102420.0,0.1558241]
[1762595668246,0.51555005,102430.0,102420.0,0.1558241]
[1762595668946,0.55061308,102430.0,102420.0,0.1558241]
[1762595669339,0.51555005,102430.0,102420.0,0.1558315]
[1762595669941,0.51555005,102430.0,102420.0,0.05814]
[1762595670338,0.51555005,102430.0,102420.0,0.1558315]
[1762595670549,0.51555005,102430.0,102420.0,0.05814]
[1762595670750,0.51555005,102430.0,102420.0,0.1558314]
[1762595671446,0.61866003,102430.0,102420.0,0.1558314]
[1762595671851,0.51555005,102430.0,102420.0,0.1558314]
[1762595672045,0.61866003,102430.0,102420.0,0.1558314]
[1762595673346,0.51555005,102430.0,102420.0,0.1558314]
[1762595674849,0.53304558,102430.0,102420.0,0.1558314]
[1762595676355,0.63613127,102430.0,102420.0,0.1558314]
[1762595681453,0.53304558,102430.0,102420.0,0.1558314]
[1762595681750,0.63613127,102430.0,102420.0,0.1558314]
[1762595682149,0.53304558,102430.0,102420.0,0.1558314]
[1762595682349,0.63613127,102430.0,102420.0,0.1558314]
[1762595682550,0.53304558,102430.0,102420.0,0.1558314]
[1762595682751,0.63613127,102430.0,102420.0,0.1558314]
[1762595684370,0.63613127,102430.0,102420.0,0.05814]
[1762595684862,0.61871521,102430.0,102420.0,0.05814]
[1762595686456,0.61871521,102430.0,102420.0,0.1558315]
[1762595687059,0.61871521,102430.0,102420.0,0.05814]
[1762595687870,0.51562952,102430.0,102420.0,0.05814]
[1762595688068,0.61871521,102430.0,102420.0,0.05814]
[1762595688860,0.0976911,102420.0,102410.0,0.1114998]
[1762595689064,0.29302179,102420.0,102410.0,0.25795549]
[1762595689365,0.29302179,102420.0,102410.0,0.1548698]
[1762595690063,0.29302179,102420.0,102410.0,0.1558698]
[1762595690364,0.29302179,102420.0,102410.0,0.1568698]
[1762595690964,0.29302179,102420.0,102410.0,0.25995549]
[1762595691172,0.29302179,102420.0,102410.0,0.1568698]
[1762595694266,0.25792431,102420.0,102410.0,0.1568698]
[1762595698164,0.15483862,102420.0,102410.0,0.1568698]
[1762595698370,0.51563862,102420.0,102410.0,0.1568771]
[1762595698674,0.61872431,102420.0,102410.0,0.1568771]
[1762595699470,0.51563862,102420.0,102410.0,0.1568771]
[1762595699672,0.61872431,102420.0,102410.0,0.1568771]
[1762595700270,0.61872431,102420.0,102410.0,0.0591763]
[1762595700471,0.66918248,102420.0,102410.0,0.0591763]
[1762595700666,0.72181,102420.0,102410.0,0.0591763]
[1762595700871,0.73922606,102420.0,102410.0,0.0591763]
[1762595701068,0.73922606,102420.0,102410.0,0.0021463]
[1762595701265,0.75676129,102420.0,102410.0,0.0021463]
[1762595702275,0.1022208,102410.0,102400.0,0.01290216]
[1762595702482,0.61882656,102410.0,102400.0,0.07130216]
[1762595702679,0.51574087,102410.0,102400.0,0.07130216]
[1762595702973,0.61882656,102410.0,102400.0,0.16901246]
[1762595703473,0.65395958,102410.0,102400.0,0.17401246]
[1762595704277,0.49815382,102410.0,102400.0,0.17401246]
[1762595704476,0.60123951,102410.0,102400.0,0.17401246]
[1762595704677,0.65395958,102410.0,102400.0,0.17401246]
[1762595704875,0.60123951,102410.0,102400.0,0.17401246]
[1762595706069,0.61882656,102410.0,102400.0,0.27709815]
[1762595706265,0.61882656,102410.0,102400.0,0.17401246]
[1762595710474,0.61882656,102410.0,102400.0,0.07630216]
[1762595710884,0.61882656,102410.0,102400.0,0.17401246]
[1762595711181,0.19004042,102410.0,102400.0,0.17401246]
[1762595711368,0.29312611,102410.0,102400.0,0.27709815]
[1762595711978,0.19003864,102410.0,102400.0,0.27709815]
[1762595712882,0.29312433,102410.0,102400.0,0.27709815]
[1762595714082,0.09233784,102410.0,102400.0,0.27709815]
[1762595714581,0.40056407,102420.0,102410.0,0.1561008]
[1762595714770,0.45328414,102420.0,102410.0,0.25918649]
[1762595715676,0.49825527,102420.0,102410.0,0.25918649]
[1762595715882,0.49825527,102420.0,102410.0,0.26018649]
[1762595716282,0.49825527,102420.0,102410.0,0.26118649]
[1762595716583,0.60134096,102420.0,102410.0,0.26118649]
[1762595717271,0.14284976,102420.0,102410.0,0.26118649]
[1762595717585,0.49825527,102420.0,102410.0,0.26118649]
[1762595717980,0.49825527,102420.0,102410.0,0.41078649]
[1762595718171,0.60134096,102420.0,102410.0,0.41078649]
[1762595718883,0.49825527,102420.0,102410.0,0.41078649]
[1762595719283,0.13745527,102420.0,102410.0,0.41078649]
[1762595719472,0.49825527,102420.0,102410.0,0.41078649]
[1762595719877,0.51587757,102420.0,102410.0,0.41078649]
[1762595720076,0.55098695,102420.0,102410.0,0.41078649]
[1762595720384,0.51587757,102420.0,102410.0,0.41078649]
[1762595721476,0.61896326,102420.0,102410.0,0.3077008]
[1762595722288,0.61896326,102420.0,102410.0,0.41078649]
[1762595724298,0.61896326,102420.0,102410.0,0.26118649]
[1762595724995,0.63656369,102420.0,102410.0,0.26118649]
[1762595727693,0.533478,102420.0,102410.0,0.26118649]
[1762595727994,0.63656369,102420.0,102410.0,0.26118649]
[1762595730390,0.63656369,102420.0,102410.0,0.1581008]
[1762595731797,0.63656369,102420.0,102410.0,0.26118649]
[1762595734902,0.61894651,102420.0,102410.0,0.26118649]
[1762595735390,0.61894984,102420.0,102410.0,0.41078649]
[1762595735700,0.61894988,102420.0,102410.0,0.41078649]
[1762595736295,0.05737299,102420.0,102410.0,0.3077008]
[1762595736502,0.05285299,102420.0,102410.0,0.41079585]
[1762595736799,0.03528485,102420.0,102410.0,0.77159585]
[1762595737002,0.03528485,102420.0,102410.0,1.01571585]
[1762595737194,0.41350669,102430.0,102420.0,0.1545312]
[1762595737195,0.44864524,102430.0,102420.0,0.1545312]
[1762595737395,0.44864524,102430.0,102420.0,0.25762625]
[1762595738596,0.08784524,102430.0,102420.0,0.7215213]
[1762595738802,0.03513855,102430.0,102420.0,0.7215213]
[1762595739294,0.44879154,102440.0,102430.0,0.05684]
[1762595739497,0.09025154,102440.0,102430.0,0.61841675]
[1762595740299,0.03754485,102440.0,102430.0,0.61841675]
[1762595741105,0.09025154,102440.0,102430.0,0.61841675]
[1762595741400,0.03754485,102440.0,102430.0,0.61841675]
[1762595742301,0.03628485,102440.0,102430.0,0.61841675]
[1762595742804,0.03854485,102440.0,102430.0,0.61841675]
[1762595743895,0.03628485,102440.0,102430.0,0.61841675]
[1762595744404,0.03628485,102440.0,102430.0,0.76801675]
[1762595762032,0.03854485,102440.0,102430.0,0.76801675]
[1762595762331,0.03628485,102440.0,102430.0,0.76801675]
[1762595762531,0.03628485,102440.0,102430.0,0.6649217]
[1762595762736,0.03628485,102440.0,102430.0,0.76801675]
[1762595763231,0.08899154,102440.0,102430.0,0.76801675]
[1762595763537,0.00128485,102440.0,102430.0,1.01205675]
[1762595763835,4.85e-06,102440.0,102430.0,1.01205675]
[1762595764225,4.85e-06,102440.0,102430.0,0.76801675]
[1762595764631,0.02266485,102440.0,102430.0,0.76801675]
[1762595764933,0.09649154,102440.0,102430.0,0.76801675]
[1762595766934,0.11410535,102440.0,102430.0,0.76801675]
[1762595770939,0.11410535,102440.0,102430.0,0.61841675]
[1762595774941,0.09654109,102440.0,102430.0,0.61841675]
[1762595775948,0.07542109,102440.0,102430.0,0.61841675]
[1762595778746,0.09654109,102440.0,102430.0,0.61841675]
[1762595780451,0.07542109,102440.0,102430.0,0.61841675]
[1762595782052,0.09654109,102440.0,102430.0,0.61841675]
[1762595782446,0.09654109,102440.0,102430.0,0.6649217]
[1762595782646,0.09654109,102440.0,102430.0,0.76801675]
[1762595783050,0.07542109,102440.0,102430.0,0.76801675]
[1762595784059,0.05276109,102440.0,102430.0,0.76801675]
[1762595787153,0.07542109,102440.0,102430.0,0.76801675]
[1762595787353,0.05276109,102440.0,102430.0,0.76801675]
[1762595787554,0.07452109,102440.0,102430.0,0.76801675]
[1762595787750,0.09559109,102440.0,102430.0,0.76801675]
[1762595790155,0.09758624,102440.0,102430.0,0.76801675]
[1762595792651,0.07651624,102440.0,102430.0,0.76801675]
[1762595798459,0.07651624,102440.0,102430.0,0.76795502]
[1762595803159,0.09952624,102440.0,102430.0,0.76795502]
[1762595803465,0.04677,102440.0,102430.0,0.40715502]
[1762595803668,0.1170905,102440.0,102430.0,0.40715502]
[1762595804362,0.09953845,102440.0,102430.0,0.40715502]
[1762595804562,0.09953836,102440.0,102430.0,0.3041217]
[1762595804761,0.2147627,102440.0,102430.0,0.25755502]
[1762595804957,0.31779602,102440.0,102430.0,0.25755502]
[1762595805160,0.2147627,102440.0,102430.0,0.25755502]
[1762595806068,0.5755627,102440.0,102430.0,0.25755502]
[1762595808171,0.69101602,102440.0,102430.0,0.1410917]
[1762595808473,0.69101602,102440.0,102430.0,0.14644332]
[1762595808659,0.69101602,102440.0,102430.0,0.04341]
[1762595809156,0.69101602,102440.0,102430.0,0.1410917]
[1762595810564,0.69101602,102440.0,102430.0,0.1193917]
[1762595810872,0.69101602,102440.0,102430.0,0.1409417]
[1762595813573,0.69101602,102440.0,102430.0,0.1193917]
[1762595814773,0.69101602,102440.0,102430.0,0.0976817]
[1762595814980,0.1425917,102430.0,102420.0,0.25765792]
[1762595815166,0.57363264,102430.0,102420.0,0.25765792]
[1762595815368,0.67666596,102430.0,102420.0,0.25765792]
[1762595816171,0.57363264,102430.0,102420.0,0.25765792]
[1762595823380,0.47595094,102430.0,102420.0,0.25765792]
[1762595823685,0.47595094,102430.0,102420.0,0.36069124]
[1762595824667,0.57363264,102430.0,102420.0,0.36069124]
[1762595825171,0.55604156,102430.0,102420.0,0.36069124]
[1762595825370,0.45835986,102430.0,102420.0,0.36069124]
[1762595827580,0.55604156,102430.0,102420.0,0.36069124]
[1762595827782,0.45835986,102430.0,102420.0,0.36069124]
[1762595828275,0.49346874,102430.0,102420.0,0.36069124]
[1762595830476,0.59115044,102430.0,102420.0,0.36069124]
[1762595831181,0.55604156,102430.0,102420.0,0.36069124]
[1762595832381,0.4408449,102430.0,102420.0,0.36069124]
[1762595832580,0.0800449,102430.0,102420.0,0.72149124]
[1762595833881,0.0351349,102430.0,102420.0,0.72149124]
[1762595834184,0.0351349,102430.0,102420.0,0.82452456]
[1762595834371,0.0351349,102430.0,102420.0,0.72149124]
[1762595837189,0.0351349,102430.0,102420.0,0.82452456]
[1762595837380,0.08878476,102440.0,102430.0,0.1566417]
[1762595837585,0.08878476,102440.0,102430.0,0.62047502]
[1762595837887,0.08878476,102440.0,102430.0,0.72350834]
[1762595838079,0.08878476,102440.0,102430.0,0.87310834]
[1762595838480,0.0361349,102440.0,102430.0,0.87310834]
[1762595845185,0.001,102440.0,102430.0,0.87310834]
[1762595845591,0.08793106,102450.0,102440.0,0.36161884]
[1762595845787,0.08793106,102450.0,102440.0,0.72241884]
[1762595846093,0.10958106,102450.0,102440.0,0.72241884]
[1762595846592,0.10958106,102450.0,102440.0,0.87201884]
[1762595846782,0.10953208,102450.0,102440.0,0.87201884]
[1762595847579,0.08788208,102450.0,102440.0,0.87201884]
[1762595848494,0.03523222,102450.0,102440.0,0.87201884]
[1762595849191,0.08788208,102450.0,102440.0,0.87501884]
[1762595849385,0.03523222,102450.0,102440.0,0.87501884]
[1762595850580,0.08772219,102460.0,102450.0,0.05634]
[1762595850787,0.08772219,102460.0,102450.0,0.36006924]
[1762595852290,0.08772219,102460.0,102450.0,0.36206924]
[1762595852893,0.08872219,102460.0,102450.0,0.36006924]
[1762595853094,0.05772233,102460.0,102450.0,0.36306924]
[1762595853487,0.05672233,102460.0,102450.0,0.36306924]
[1762595853687,0.05672233,102460.0,102450.0,0.72386924]
[1762595855688,0.05672233,102460.0,102450.0,0.87346924]
[1762595857491,0.03507233,102460.0,102450.0,0.87346924]
[1762595858293,0.03507233,102460.0,102450.0,0.87336576]
[1762595859785,0.41359616,102470.0,102460.0,0.02238]
[1762595859994,0.41359616,102470.0,102460.0,0.25851468]
[1762595859995,0.45756616,102470.0,102460.0,0.25851468]
[1762595861193,0.09676616,102470.0,102460.0,0.25851468]
[1762595861592,0.0441163,102470.0,102460.0,0.25851468]
[1762595862498,0.0227963,102470.0,102460.0,0.26051468]
[1762595862992,0.0448963,102470.0,102460.0,0.26051468]
[1762595863587,0.0438963,102470.0,102460.0,0.26151468]
[1762595864597,0.0438963,102470.0,102460.0,0.41111468]
[1762595864996,0.09654616,102470.0,102460.0,0.41111468]
[1762595865495,0.05279616,102470.0,102460.0,0.77191468]
[1762595866196,0.07596616,102470.0,102460.0,0.77191468]
[1762595866395,0.05279616,102470.0,102460.0,0.77191468]
[1762595867800,0.07596616,102470.0,102460.0,0.77191468]
[1762595868701,0.05279616,102470.0,102460.0,0.77191468]
[1762595869399,0.07596616,102470.0,102460.0,0.77191468]
[1762595869609,0.05279616,102470.0,102460.0,0.77191468]
[1762595871392,0.07024094,102480.0,102470.0,0.1548135]
[1762595871596,0.48585775,102490.0,102480.0,0.154804]
[1762595871797,0.12505775,102490.0,102480.0,0.61858558]
[1762595872304,0.05481681,102490.0,102480.0,0.515604]
[1762595872599,0.05481681,102490.0,102480.0,0.61858558]
[1762595873505,0.05781681,102490.0,102480.0,0.61858558]
[1762595874100,0.05481681,102490.0,102480.0,0.61858558]
[1762595874701,0.05481681,102490.0,102480.0,0.515604]
[1762595874898,0.05481681,102490.0,102480.0,0.61858558]
[1762595875302,0.05481681,102490.0,102480.0,0.62158558]
[1762595876103,0.05481681,102490.0,102480.0,0.61858558]
[1762595876305,0.05481681,102490.0,102480.0,0.77018558]